[Event "SS Manhem Chess Week 2022: Goteborg Open"]
[Site "Schackcentrum, Vegagatan 20, Gothenburg, Sweden"]
[Date "2022.08.12"]
[Round "3.16"]
[White "Andreasson, Henrik"]
[Black "Kosmidis, Thomas"]
[Result "1/2-1/2"]
[TimeControl "15 minutes + 5 seconds per move from move one (Round 1 - 4) / 90 minutes + 30 seconds per move from move one (Round 5 - 8)"]
[WhiteFideId "1766082"]
[BlackFideId "1753380"]
[WhiteElo "1126"]
[BlackElo "1673"]

1. d4 {[%clk 00:15:08]} {[%emt 00:00:01]} c6 {[%clk 00:15:07]} {[%emt
00:00:03]} 2. Nf3 {[%clk 00:15:10]} {[%emt 00:00:03]} d5 {[%clk 00:15:11]}
{[%emt 00:00:01]} 3. e3 {[%clk 00:15:13]} {[%emt 00:00:02]} Nf6 {[%clk
00:15:13]} {[%emt 00:00:03]} 4. Be2 {[%clk 00:15:06]} {[%emt 00:00:12]} Bg4
{[%clk 00:15:09]} {[%emt 00:00:09]} 5. Nbd2 {[%clk 00:14:57]} {[%emt 00:00:14]}
e6 {[%clk 00:15:06]} {[%emt 00:00:08]} 6. b3 {[%clk 00:14:57]} {[%emt
00:00:05]} Nbd7 {[%clk 00:14:59]} {[%emt 00:00:12]} 7. a4 {[%clk 00:14:48]}
{[%emt 00:00:14]} Bd6 {[%clk 00:14:54]} {[%emt 00:00:09]} 8. Ba3 {[%clk
00:14:46]} {[%emt 00:00:08]} Bxa3 {[%clk 00:14:32]} {[%emt 00:00:26]} 9. Rxa3
{[%clk 00:14:49]} {[%emt 00:00:02]} c5 {[%clk 00:14:09]} {[%emt 00:00:28]} 10.
Bb5 {[%clk 00:14:33]} {[%emt 00:00:21]} O-O {[%clk 00:14:04]} {[%emt 00:00:11]}
11. Be2 {[%clk 00:14:29]} {[%emt 00:00:09]} Rc8 {[%clk 00:13:54]} {[%emt
00:00:14]} 12. Ra1 {[%clk 00:14:32]} {[%emt 00:00:02]} cxd4 {[%clk 00:13:16]}
{[%emt 00:00:43]} 13. Nxd4 {[%clk 00:14:29]} {[%emt 00:00:08]} Bxe2 {[%clk
00:13:12]} {[%emt 00:00:09]} 14. Nxe2 {[%clk 00:14:18]} {[%emt 00:00:16]} Nc5
{[%clk 00:13:06]} {[%emt 00:00:11]} 15. Rc1 {[%clk 00:14:03]} {[%emt 00:00:21]}
Nce4 {[%clk 00:12:54]} {[%emt 00:00:16]} 16. O-O {[%clk 00:13:26]} {[%emt
00:00:42]} Qb6 {[%clk 00:12:33]} {[%emt 00:00:26]} 17. Nd4 {[%clk 00:13:00]}
{[%emt 00:00:32]} Nc3 {[%clk 00:11:42]} {[%emt 00:00:55]} 18. Qf3 {[%clk
00:12:21]} {[%emt 00:00:45]} e5 {[%clk 00:11:19]} {[%emt 00:00:29]} 19. Nf5
{[%clk 00:10:44]} {[%emt 00:01:42]} e4 {[%clk 00:11:01]} {[%emt 00:00:23]} 20.
Qh3 {[%clk 00:10:18]} {[%emt 00:00:30]} Ne2+ {[%clk 00:10:51]} {[%emt
00:00:15]} 21. Kh1 {[%clk 00:10:19]} {[%emt 00:00:03]} Nxc1 {[%clk 00:10:54]}
{[%emt 00:00:03]} 22. Ne7+ {[%clk 00:10:00]} {[%emt 00:00:24]} Kh8 {[%clk
00:10:42]} {[%emt 00:00:17]} 23. Nxc8 {[%clk 00:10:03]} {[%emt 00:00:03]} Qc5
{[%clk 00:09:46]} {[%emt 00:01:00]} 24. Rxc1 {[%clk 00:09:14]} {[%emt
00:00:54]} Rxc8 {[%clk 00:09:49]} {[%emt 00:00:03]} 25. b4 {[%clk 00:08:59]}
{[%emt 00:00:20]} Qc3 {[%clk 00:09:13]} {[%emt 00:00:39]} 26. Nb3 {[%clk
00:07:55]} {[%emt 00:01:11]} Rd8 {[%clk 00:08:21]} {[%emt 00:00:56]} 27. b5
{[%clk 00:07:03]} {[%emt 00:00:57]} Qb4 {[%clk 00:07:45]} {[%emt 00:00:40]} 28.
Ra1 {[%clk 00:06:45]} {[%emt 00:00:22]} h6 {[%clk 00:07:27]} {[%emt 00:00:25]}
29. g3 {[%clk 00:06:43]} {[%emt 00:00:07]} Nh7 {[%clk 00:06:48]} {[%emt
00:00:44]} 30. Nd4 {[%clk 00:06:27]} {[%emt 00:00:21]} Ng5 {[%clk 00:06:21]}
{[%emt 00:00:32]} 31. Qg4 {[%clk 00:06:09]} {[%emt 00:00:22]} Qc3 {[%clk
00:05:56]} {[%emt 00:00:31]} 32. Rf1 {[%clk 00:05:35]} {[%emt 00:00:40]} Qc4
{[%clk 00:04:28]} {[%emt 00:01:34]} 33. Ra1 {[%clk 00:05:15]} {[%emt 00:00:24]}
Qc3 {[%clk 00:03:18]} {[%emt 00:01:15]} 34. Rf1 {[%clk 00:05:06]} {[%emt
00:00:13]} Nf3 {[%clk 00:03:20]} {[%emt 00:00:03]} 35. Rd1 {[%clk 00:03:45]}
{[%emt 00:01:26]} Nxd4 {[%clk 00:03:14]} {[%emt 00:00:11]} 36. Rxd4 {[%clk
00:03:32]} {[%emt 00:00:17]} Qxc2 {[%clk 00:03:17]} {[%emt 00:00:03]} 37. Qf4
{[%clk 00:03:26]} {[%emt 00:00:11]} Kg8 {[%clk 00:02:58]} {[%emt 00:00:24]} 38.
Kg2 {[%clk 00:03:26]} {[%emt 00:00:05]} Qc5 {[%clk 00:02:35]} {[%emt 00:00:28]}
39. Qe5 {[%clk 00:03:20]} {[%emt 00:00:11]} Qd6 {[%clk 00:02:14]} {[%emt
00:00:26]} 40. Qxd6 {[%clk 00:02:38]} {[%emt 00:00:47]} Rxd6 {[%clk 00:02:18]}
{[%emt 00:00:01]} 41. Kh3 {[%clk 00:02:33]} {[%emt 00:00:10]} f5 {[%clk
00:02:20]} {[%emt 00:00:03]} 42. g4 {[%clk 00:02:29]} {[%emt 00:00:08]} g6
{[%clk 00:02:07]} {[%emt 00:00:18]} 43. gxf5 {[%clk 00:02:20]} {[%emt
00:00:14]} gxf5 {[%clk 00:02:11]} {[%emt 00:00:01]} 44. Kg3 {[%clk 00:02:20]}
{[%emt 00:00:05]} Kg7 {[%clk 00:02:15]} {[%emt 00:00:02]} 45. Kf4 {[%clk
00:02:24]} Kf6 {[%clk 00:02:19]} {[%emt 00:00:01]} 46. h4 {[%clk 00:02:16]}
{[%emt 00:00:13]} Ke6 {[%clk 00:02:14]} {[%emt 00:00:10]} 47. Rd1 {[%clk
00:01:56]} {[%emt 00:00:25]} a6 {[%clk 00:02:09]} {[%emt 00:00:10]} 48. Rg1
{[%clk 00:01:55]} {[%emt 00:00:06]} Kf6 {[%clk 00:02:12]} {[%emt 00:00:02]} 49.
h5 {[%clk 00:01:40]} {[%emt 00:00:20]} Kf7 {[%clk 00:01:45]} {[%emt 00:00:32]}
50. Kxf5 {[%clk 00:01:39]} {[%emt 00:00:06]} axb5 {[%clk 00:01:48]} {[%emt
00:00:02]} 51. axb5 {[%clk 00:01:31]} {[%emt 00:00:13]} Rb6 {[%clk 00:01:42]}
{[%emt 00:00:10]} 52. Rb1 {[%clk 00:01:27]} {[%emt 00:00:09]} Rf6+ {[%clk
00:01:46]} {[%emt 00:00:01]} 53. Ke5 {[%clk 00:01:29]} {[%emt 00:00:03]} Rxf2
{[%clk 00:01:33]} {[%emt 00:00:18]} 54. Kxd5 {[%clk 00:01:29]} {[%emt
00:00:05]} Rf5+ {[%clk 00:01:29]} {[%emt 00:00:09]} 55. Kxe4 {[%clk 00:01:29]}
{[%emt 00:00:04]} Rxh5 {[%clk 00:01:33]} 56. Rc1 {[%clk 00:01:15]} {[%emt
00:00:20]} Rxb5 {[%clk 00:01:33]} {[%emt 00:00:06]} 57. Rc7+ {[%clk 00:01:13]}
{[%emt 00:00:06]} Kf6 {[%clk 00:01:36]} {[%emt 00:00:01]} 58. Kf4 {[%clk
00:01:10]} {[%emt 00:00:09]} Rb4+ {[%clk 00:01:36]} {[%emt 00:00:05]} 59. e4
{[%clk 00:01:06]} {[%emt 00:00:09]} b5 {[%clk 00:01:30]} {[%emt 00:00:11]} 60.
Rc6+ {[%clk 00:01:08]} {[%emt 00:00:03]} Kg7 {[%clk 00:01:34]} {[%emt
00:00:02]} 61. Kf5 {[%clk 00:01:06]} {[%emt 00:00:07]} h5 {[%clk 00:01:32]}
{[%emt 00:00:06]} 62. Rg6+ {[%clk 00:00:51]} {[%emt 00:00:20]} Kh7 {[%clk
00:01:12]} {[%emt 00:00:23]} 63. Rg5 {[%clk 00:00:52]} {[%emt 00:00:06]} Kh6
{[%clk 00:01:05]} {[%emt 00:00:12]} 64. Rg6+ {[%clk 00:00:55]} {[%emt
00:00:02]} Kh7 {[%clk 00:01:09]} {[%emt 00:00:01]} 65. Rg5 {[%clk 00:00:59]}
Rb1 {[%clk 00:00:59]} {[%emt 00:00:15]} 66. Rxh5+ {[%emt 00:00:04]} Kg7 67.
Rg5+ {[%clk 00:00:57]} {[%emt 00:00:08]} Kf7 {[%clk 00:01:08]} 68. Ke5 {[%clk
00:00:41]} {[%emt 00:00:21]} b4 {[%clk 00:01:09]} {[%emt 00:00:04]} 69. Kd4
{[%clk 00:00:41]} {[%emt 00:00:04]} Kf6 {[%clk 00:01:06]} {[%emt 00:00:08]} 70.
Rb5 {[%clk 00:00:41]} {[%emt 00:00:05]} b3 {[%clk 00:01:00]} {[%emt 00:00:12]}
71. Kc3 {[%clk 00:00:40]} {[%emt 00:00:05]} b2 {[%clk 00:00:52]} {[%emt
00:00:12]} 72. Rxb2 {[%clk 00:00:43]} 1/2-1/2

[Event "SS Manhem Chess Week 2022: Goteborg Open"]
[Site "Schackcentrum, Vegagatan 20, Gothenburg, Sweden"]
[Date "2022.08.12"]
[Round "3.18"]
[White "Ghaderi, Noan"]
[Black "Braby, Berth S"]
[Result "1-0"]
[TimeControl "15 minutes + 5 seconds per move from move one (Round 1 - 4) / 90 minutes + 30 seconds per move from move one (Round 5 - 8)"]
[WhiteFideId "1747096"]
[BlackFideId "1715836"]
[WhiteElo "1367"]
[BlackElo "1566"]

1. e4 {[%clk 00:15:08]} {[%emt 00:00:02]} e6 {[%clk 00:15:10]} {[%emt
00:00:01]} 2. d4 {[%clk 00:15:12]} d5 {[%clk 00:15:13]} 3. e5 {[%clk 00:15:16]}
{[%emt 00:00:01]} c5 {[%clk 00:15:17]} 4. c3 {[%clk 00:15:20]} Nc6 {[%clk
00:15:20]} {[%emt 00:00:02]} 5. Nf3 {[%clk 00:15:14]} {[%emt 00:00:12]} Qb6
{[%clk 00:15:20]} {[%emt 00:00:04]} 6. dxc5 {[%clk 00:14:32]} {[%emt 00:00:47]}
Bxc5 {[%clk 00:15:08]} {[%emt 00:00:16]} 7. Qc2 {[%clk 00:14:34]} {[%emt
00:00:04]} Nge7 {[%clk 00:14:33]} {[%emt 00:00:41]} 8. Bf4 {[%clk 00:14:27]}
{[%emt 00:00:12]} O-O {[%clk 00:14:07]} {[%emt 00:00:31]} 9. Bd3 {[%clk
00:14:25]} {[%emt 00:00:07]} Ng6 {[%clk 00:13:52]} {[%emt 00:00:19]} 10. Bg3
{[%clk 00:14:29]} {[%emt 00:00:01]} Bd7 {[%clk 00:13:25]} {[%emt 00:00:32]} 11.
O-O {[%clk 00:14:31]} {[%emt 00:00:02]} Rac8 {[%clk 00:13:00]} {[%emt
00:00:30]} 12. Nbd2 {[%clk 00:13:45]} {[%emt 00:00:52]} Nb4 {[%clk 00:11:35]}
{[%emt 00:01:30]} 13. cxb4 {[%clk 00:13:42]} {[%emt 00:00:08]} Bxf2+ {[%clk
00:11:19]} {[%emt 00:00:21]} 14. Bxf2 {[%clk 00:13:44]} {[%emt 00:00:03]} Qxf2+
{[%clk 00:10:12]} {[%emt 00:01:12]} 15. Rxf2 {[%clk 00:13:46]} {[%emt
00:00:03]} Rxc2 {[%clk 00:09:51]} {[%emt 00:00:26]} 16. Bxc2 {[%clk 00:13:50]}
{[%emt 00:00:02]} Rc8 {[%clk 00:09:13]} {[%emt 00:00:43]} 17. Bxg6 {[%clk
00:13:44]} {[%emt 00:00:10]} hxg6 {[%clk 00:09:16]} {[%emt 00:00:02]} 18. Ng5
{[%clk 00:13:29]} {[%emt 00:00:20]} Be8 {[%clk 00:08:47]} {[%emt 00:00:34]} 19.
Nb3 {[%clk 00:13:21]} {[%emt 00:00:13]} Rc4 {[%clk 00:08:23]} {[%emt 00:00:28]}
20. Rc1 {[%clk 00:12:47]} {[%emt 00:00:41]} Rxb4 {[%clk 00:07:48]} {[%emt
00:00:39]} 21. Rc8 {[%emt 00:00:04]} Kf8 {[%clk 00:07:50]} {[%emt 00:00:01]} 22.
Rxf7+ {[%clk 00:12:50]} {[%emt 00:00:05]} 1-0

[Event "SS Manhem Chess Week 2022: Goteborg Open"]
[Site "Schackcentrum, Vegagatan 20, Gothenburg, Sweden"]
[Date "2022.08.12"]
[Round "3.19"]
[White "Westman, Lennart"]
[Black "Stedman, Theodor"]
[Result "1/2-1/2"]
[TimeControl "15 minutes + 5 seconds per move from move one (Round 1 - 4) / 90 minutes + 30 seconds per move from move one (Round 5 - 8)"]
[WhiteFideId "1718690"]
[BlackFideId "1756230"]
[WhiteElo "1655"]
[BlackElo "1474"]

1. e4 {[%clk 00:15:07]} {[%emt 00:00:02]} a6 {[%clk 00:14:57]} {[%emt
00:00:14]} 2. d4 {[%clk 00:14:58]} {[%emt 00:00:14]} b5 {[%clk 00:15:00]}
{[%emt 00:00:02]} 3. Bd3 {[%clk 00:14:47]} {[%emt 00:00:16]} Bb7 {[%clk
00:15:02]} {[%emt 00:00:03]} 4. f3 {[%clk 00:14:25]} {[%emt 00:00:27]} e6
{[%clk 00:15:03]} {[%emt 00:00:04]} 5. Be3 {[%clk 00:14:16]} {[%emt 00:00:14]}
Nf6 {[%clk 00:15:00]} {[%emt 00:00:09]} 6. Ne2 {[%clk 00:14:12]} {[%emt
00:00:09]} d5 {[%clk 00:14:53]} {[%emt 00:00:12]} 7. Nd2 {[%clk 00:13:40]}
{[%emt 00:00:37]} dxe4 {[%clk 00:14:32]} {[%emt 00:00:27]} 8. Nxe4 {[%clk
00:13:14]} {[%emt 00:00:31]} Nxe4 {[%clk 00:14:29]} {[%emt 00:00:08]} 9. fxe4
{[%clk 00:13:12]} {[%emt 00:00:07]} Bd6 {[%clk 00:14:23]} {[%emt 00:00:11]} 10.
Qd2 {[%clk 00:11:53]} {[%emt 00:01:23]} Bxe4 {[%clk 00:14:05]} {[%emt
00:00:23]} 11. Bxe4 {[%clk 00:11:38]} {[%emt 00:00:20]} Qh4+ {[%clk 00:14:03]}
{[%emt 00:00:07]} 12. Bf2 {[%clk 00:10:44]} {[%emt 00:01:00]} Qxe4 {[%clk
00:14:02]} {[%emt 00:00:06]} 13. O-O {[%clk 00:10:21]} {[%emt 00:00:28]} Nd7
{[%clk 00:13:51]} {[%emt 00:00:15]} 14. Nc3 {[%clk 00:10:08]} {[%emt 00:00:19]}
Qf4 {[%clk 00:13:40]} {[%emt 00:00:16]} 15. Qxf4 {[%clk 00:10:02]} {[%emt
00:00:11]} Bxf4 {[%clk 00:13:43]} {[%emt 00:00:02]} 16. d5 {[%clk 00:09:35]}
{[%emt 00:00:32]} O-O {[%clk 00:13:26]} {[%emt 00:00:21]} 17. dxe6 {[%clk
00:09:29]} {[%emt 00:00:11]} fxe6 {[%clk 00:13:30]} {[%emt 00:00:01]} 18. Ne4
{[%clk 00:09:06]} {[%emt 00:00:28]} Nf6 {[%clk 00:13:12]} {[%emt 00:00:23]} 19.
Nc5 {[%clk 00:08:54]} {[%emt 00:00:17]} Ng4 {[%clk 00:12:09]} {[%emt 00:01:08]}
20. g3 {[%clk 00:07:27]} {[%emt 00:01:31]} Nxf2 {[%clk 00:11:41]} {[%emt
00:00:33]} 21. gxf4 {[%clk 00:06:20]} {[%emt 00:01:13]} Nh3+ {[%emt 00:00:15]}
22. Kh1 {[%clk 00:05:01]} {[%emt 00:01:22]} Nxf4 {[%clk 00:11:26]} {[%emt
00:00:12]} 23. Rae1 {[%clk 00:04:35]} {[%emt 00:00:30]} g5 {[%clk 00:10:21]}
{[%emt 00:01:10]} 24. Rg1 {[%clk 00:04:04]} {[%emt 00:00:36]} h6 {[%clk
00:10:12]} {[%emt 00:00:14]} 25. Nxe6 {[%clk 00:03:56]} {[%emt 00:00:13]} Nxe6
{[%clk 00:10:10]} {[%emt 00:00:08]} 26. Rxe6 {[%clk 00:04:00]} {[%emt
00:00:01]} Rf2 {[%clk 00:10:13]} 27. Rxh6 {[%clk 00:03:28]} {[%emt 00:00:37]}
Rxc2 {[%clk 00:09:48]} {[%emt 00:00:30]} 28. Rxg5+ {[%clk 00:03:09]} {[%emt
00:00:23]} Kf7 {[%clk 00:09:52]} 29. Rgh5 {[%clk 00:01:43]} {[%emt 00:01:32]}
Rd8 {[%clk 00:09:35]} {[%emt 00:00:22]} 30. Rh7+ {[%clk 00:01:19]} {[%emt
00:00:28]} Ke6 {[%clk 00:09:11]} {[%emt 00:00:29]} 31. R7h6+ {[%clk 00:01:14]}
{[%emt 00:00:10]} Ke7 {[%clk 00:09:00]} {[%emt 00:00:16]} 32. Rh7+ {[%clk
00:01:09]} {[%emt 00:00:10]} Kd6 {[%clk 00:08:59]} {[%emt 00:00:06]} 33. R5h6+
{[%clk 00:01:09]} {[%emt 00:00:05]} Ke5 {[%clk 00:08:51]} {[%emt 00:00:13]} 34.
Rh5+ {[%clk 00:01:08]} {[%emt 00:00:06]} Kf4 {[%clk 00:08:42]} {[%emt
00:00:13]} 35. Rh4+ {[%clk 00:01:09]} {[%emt 00:00:05]} Kf3 {[%clk 00:08:36]}
{[%emt 00:00:12]} 36. Rf7+ {[%clk 00:01:03]} {[%emt 00:00:11]} Ke2 {[%clk
00:08:27]} {[%emt 00:00:13]} 37. Re7+ {[%clk 00:00:50]} {[%emt 00:00:19]} Kd1
{[%clk 00:08:10]} {[%emt 00:00:22]} 38. Rhe4 {[%clk 00:00:49]} {[%emt
00:00:07]} Rxb2 {[%clk 00:07:56]} {[%emt 00:00:19]} 39. Re1+ {[%clk 00:00:43]}
{[%emt 00:00:11]} Kd2 {[%clk 00:07:44]} {[%emt 00:00:16]} 40. R1e2+ {[%clk
00:00:41]} {[%emt 00:00:07]} Kc1 {[%clk 00:07:14]} {[%emt 00:00:35]} 41. Rxc7+
{[%clk 00:00:44]} {[%emt 00:00:03]} Kb1 {[%clk 00:07:16]} {[%emt 00:00:03]} 42.
Re1+ {[%clk 00:00:44]} {[%emt 00:00:03]} Kxa2 {[%clk 00:07:18]} {[%emt
00:00:05]} 43. Rcc1 {[%clk 00:00:35]} {[%emt 00:00:14]} Rd6 {[%clk 00:06:12]}
{[%emt 00:01:10]} 44. h4 {[%clk 00:00:31]} {[%emt 00:00:10]} Ka3 {[%clk
00:05:51]} {[%emt 00:00:27]} 45. Re3+ {[%clk 00:00:34]} {[%emt 00:00:01]} Rb3
{[%clk 00:05:31]} {[%emt 00:00:24]} 46. Rxb3+ {[%clk 00:00:29]} {[%emt
00:00:10]} Kxb3 {[%clk 00:05:35]} {[%emt 00:00:01]} 47. Kh2 {[%clk 00:00:29]}
{[%emt 00:00:05]} a5 {[%clk 00:05:38]} {[%emt 00:00:02]} 48. Rc5 {[%clk
00:00:29]} {[%emt 00:00:05]} Kb4 {[%clk 00:05:30]} {[%emt 00:00:13]} 49. Rg5
{[%clk 00:00:30]} {[%emt 00:00:04]} a4 {[%clk 00:05:34]} {[%emt 00:00:02]} 50.
h5 {[%clk 00:00:32]} {[%emt 00:00:02]} a3 {[%clk 00:05:37]} {[%emt 00:00:02]}
51. Rg6 {[%clk 00:00:30]} {[%emt 00:00:07]} Rd5 {[%clk 00:05:22]} {[%emt
00:00:19]} 52. Rg4+ {[%clk 00:00:18]} {[%emt 00:00:18]} Kc3 {[%clk 00:05:22]}
{[%emt 00:00:06]} 53. Rg3+ {[%clk 00:00:21]} {[%emt 00:00:02]} Rd3 {[%clk
00:05:23]} {[%emt 00:00:04]} 54. h6 {[%clk 00:00:14]} {[%emt 00:00:11]} Rxg3
{[%clk 00:03:57]} {[%emt 00:01:31]} 55. Kxg3 {[%clk 00:00:15]} {[%emt
00:00:04]} b4 {[%clk 00:03:48]} {[%emt 00:00:13]} 56. h7 {[%clk 00:00:19]}
{[%emt 00:00:01]} b3 {[%clk 00:03:53]} 57. h8=Q+ {[%emt 00:00:04]} Kc2 {[%emt
00:00:05]} 58. Qh7+ {[%emt 00:00:03]} Kb2 {[%clk 00:03:56]} 59. Qg7+ {[%clk
00:00:27]} {[%emt 00:00:01]} Ka2 {[%clk 00:03:59]} {[%emt 00:00:02]} 60. Qf7
{[%clk 00:00:28]} Ka1 {[%emt 00:00:18]} 61. Qf2 {[%clk 00:00:31]} Kb2 {[%clk
00:04:04]} {[%emt 00:00:03]} 62. Qd2+ {[%emt 00:00:03]} Kb1 {[%clk 00:04:02]}
{[%emt 00:00:05]} 63. Qd1+ {[%clk 00:00:37]} {[%emt 00:00:03]} Kb2 {[%emt
00:00:07]} 64. Qd2+ {[%clk 00:00:34]} {[%emt 00:00:03]} Kb1 {[%clk 00:04:07]}
{[%emt 00:00:02]} 1/2-1/2

[Event "SS Manhem Chess Week 2022: Goteborg Open"]
[Site "Schackcentrum, Vegagatan 20, Gothenburg, Sweden"]
[Date "2022.08.12"]
[Round "4.1"]
[White "Heimisson, Hilmir Freyr"]
[Black "Fransson, Lennart"]
[Result "1-0"]
[TimeControl "15 minutes + 5 seconds per move from move one (Round 1 - 4) / 90 minutes + 30 seconds per move from move one (Round 5 - 8)"]
[WhiteTitle "IM"]
[WhiteFideId "2309998"]
[BlackFideId "1706756"]
[WhiteElo "2323"]
[BlackElo "1958"]

1. c4 {[%clk 00:15:08]} Nf6 {[%clk 00:15:05]} {[%emt 00:00:05]} 2. Nc3 {[%clk
00:15:12]} {[%emt 00:00:02]} d5 {[%clk 00:15:03]} {[%emt 00:00:07]} 3. cxd5
{[%clk 00:15:15]} {[%emt 00:00:02]} Nxd5 {[%clk 00:15:06]} {[%emt 00:00:01]} 4.
g3 {[%clk 00:15:16]} {[%emt 00:00:05]} e5 {[%clk 00:14:50]} {[%emt 00:00:20]} 5.
Bg2 {[%clk 00:15:20]} {[%emt 00:00:02]} Nb6 {[%clk 00:14:48]} {[%emt 00:00:07]}
6. Nf3 {[%clk 00:15:23]} {[%emt 00:00:02]} Nc6 {[%clk 00:14:50]} {[%emt
00:00:02]} 7. O-O {[%clk 00:15:26]} {[%emt 00:00:03]} Be7 {[%clk 00:14:53]}
{[%emt 00:00:01]} 8. Rb1 {[%clk 00:15:30]} {[%emt 00:00:03]} O-O {[%clk
00:14:49]} {[%emt 00:00:08]} 9. b4 {[%clk 00:15:29]} {[%emt 00:00:06]} f6
{[%clk 00:14:07]} {[%emt 00:00:46]} 10. b5 {[%clk 00:15:20]} {[%emt 00:00:16]}
Nd4 {[%clk 00:13:35]} {[%emt 00:00:36]} 11. a4 {[%clk 00:15:21]} {[%emt
00:00:04]} Be6 {[%clk 00:13:24]} {[%emt 00:00:15]} 12. d3 {[%clk 00:15:05]}
{[%emt 00:00:22]} Nd5 {[%clk 00:12:28]} {[%emt 00:01:01]} 13. Bb2 {[%clk
00:14:14]} {[%emt 00:00:56]} Nxf3+ {[%clk 00:11:49]} {[%emt 00:00:44]} 14. Bxf3
{[%clk 00:14:14]} {[%emt 00:00:05]} Nxc3 {[%clk 00:11:31]} {[%emt 00:00:23]} 15.
Bxc3 {[%clk 00:14:17]} {[%emt 00:00:02]} Bd5 {[%clk 00:11:34]} {[%emt
00:00:02]} 16. Bg4 {[%clk 00:14:01]} {[%emt 00:00:21]} f5 {[%clk 00:11:22]}
{[%emt 00:00:17]} 17. Bh3 {[%clk 00:14:03]} {[%emt 00:00:04]} Bd6 {[%clk
00:11:18]} {[%emt 00:00:08]} 18. Bxf5 {[%clk 00:13:08]} {[%emt 00:01:00]} Rxf5
{[%clk 00:11:07]} {[%emt 00:00:15]} 19. e4 {[%clk 00:13:11]} {[%emt 00:00:03]}
Bxe4 {[%clk 00:11:04]} {[%emt 00:00:08]} 20. dxe4 {[%clk 00:13:14]} {[%emt
00:00:02]} Rf7 {[%clk 00:10:46]} {[%emt 00:00:23]} 21. Qd5 {[%clk 00:13:17]}
{[%emt 00:00:02]} c6 {[%clk 00:10:11]} {[%emt 00:00:41]} 22. bxc6 {[%clk
00:12:29]} {[%emt 00:00:53]} bxc6 {[%clk 00:10:14]} {[%emt 00:00:01]} 23. Qc4
{[%clk 00:12:19]} {[%emt 00:00:15]} Qe7 {[%clk 00:09:38]} {[%emt 00:00:41]} 24.
Bd2 {[%clk 00:11:53]} {[%emt 00:00:31]} Kh8 {[%clk 00:08:09]} {[%emt 00:01:34]}
25. Be3 {[%clk 00:11:20]} {[%emt 00:00:38]} Rc8 {[%clk 00:07:33]} {[%emt
00:00:41]} 26. Rfd1 {[%clk 00:11:18]} {[%emt 00:00:07]} a5 {[%clk 00:06:56]}
{[%emt 00:00:41]} 27. Rxd6 {[%clk 00:11:14]} {[%emt 00:00:10]} 1-0